fUST/lending_fUST_20250723
["ID","MTS","AMOUNT","RATE_DAILY","PERIOD"]
[374110278,1753210253550,-731.94,0.0001929,2]
[374110279,1753210253559,-1345.13,0.0001929,2]
[374110280,1753210253568,-1187.11,0.0001929,2]
[374110281,1753210253578,-2137.7,0.0001929,2]
[374110282,1753210253587,-1349.67,0.0001929,2]
[374110283,1753210253597,-460.0,0.0001929,2]
[374110284,1753210253606,-1694.69,0.0001929,2]
[374110285,1753210253615,-460.0,0.0001929,2]
[374110286,1753210253624,-754.36,0.0001929,2]
[374110287,1753210253634,-929.4,0.0001929,2]
[374110288,1753210253643,-1020.16,0.0001929,2]
[374110289,1753210253653,-646.92,0.0001929,2]
[374110290,1753210253662,-1358.12,0.0001929,2]
[374110291,1753210253671,-460.0,0.00019291,2]
[374110292,1753210253680,-460.0,0.00019291,2]
[374110293,1753210253689,-553.33,0.00019291,2]
[374110294,1753210253699,-553.25,0.00019291,2]
[374110295,1753210253708,-1153.71,0.00019291,2]
[374110296,1753210253717,-1418.31,0.00019291,2]
[374110297,1753210253727,-460.0,0.00019291,2]
[374110298,1753210253736,-460.0,0.00019291,2]
[374110299,1753210253745,-557.74,0.00019291,2]
[374110300,1753210253754,-460.0,0.00019291,2]
[374110301,1753210253763,-1362.87,0.00019291,2]
[374110302,1753210253772,-1064.63,0.00019291,2]
[374110303,1753210253781,-571.13,0.00019291,2]
[374110304,1753210253790,-588.73,0.00019291,2]
[374110305,1753210253801,-1351.51,0.00019291,2]
[374110306,1753210253810,-1776.12,0.00019291,2]
[374110307,1753210253819,-544.55,0.00019291,2]
[374110308,1753210253828,-2704.27,0.00019291,2]
[374110309,1753210253837,-691.11,0.00019291,2]
[374110310,1753210253847,-460.0,0.00019291,2]
[374110311,1753210253856,-3949.8,0.00019291,2]
[374110312,1753210253865,-863.13,0.00019291,2]
[374110313,1753210253876,-547.67,0.00019291,2]
[374110314,1753210253885,-460.0,0.00019291,2]
[374110315,1753210253895,-603.47711971,0.00019291,2]
[374110316,1753210253914,-1345.16,0.00019291,2]
[374110317,1753210253925,-460.0,0.00019292,2]
[374110318,1753210253934,-5101.83,0.00019292,2]
[374110319,1753210253944,-1108.99,0.00019292,2]
[374110320,1753210253954,-460.0,0.00019292,2]
[374110321,1753210253963,-460.0,0.00019292,2]
[374110322,1753210253975,-605.93,0.00019292,2]
[374110323,1753210253984,-4275.34,0.00019292,2]
[374110324,1753210253994,-460.0,0.00019292,2]
[374110325,1753210254003,-688.73,0.00019292,2]
[374110326,1753210254012,-460.0,0.00019292,2]
[374110327,1753210254021,-830.04,0.00019292,2]
[374110328,1753210254030,-524.19,0.00019292,2]
[374110329,1753210254099,-460.0,0.00019292,2]
[374110330,1753210254108,-909.71,0.00019292,2]
[374110331,1753210254117,-3027.97,0.00019292,2]
[374110332,1753210254126,-460.0,0.00019292,2]
[374110333,1753210254135,-1465.54,0.00019292,2]
[374110334,1753210254144,-859.92,0.00019292,2]
[374110335,1753210254154,-824.09,0.00019292,2]
[374110336,1753210254163,-2920.58,0.00019292,2]
[374110337,1753210254172,-4347.26,0.00019292,2]
[374110338,1753210254181,-460.0,0.00019292,2]
[374110339,1753210254190,-998.04,0.00019292,2]
[374110340,1753210254199,-460.0,0.00019293,2]
[374110341,1753210254208,-2213.22,0.00019293,2]
[374110342,1753210254217,-18084.61693578,0.00019329,2]
[374110343,1753210254226,-5275.87341887,0.00019383,2]
[374110344,1753210254235,-258.98,0.00019476,2]
[374110345,1753210254244,-889.22,0.00019561,2]
[374110346,1753210254253,-967.41,0.00019561,2]
[374110347,1753210254262,-3933.01,0.00019561,2]
[374110348,1753210254272,-5587.21,0.00019563,2]
[374110349,1753210254281,-1108.38,0.00019563,2]
[374110350,1753210254291,-1005.99,0.00019563,2]
[374110351,1753210254302,-5283.6,0.00019563,2]
[374110352,1753210254311,-1079.55,0.00019563,2]
[374110353,1753210254321,-460.0,0.00019563,2]
[374110354,1753210254331,-3137.23,0.00019563,2]
[374110355,1753210254340,-558.47,0.00019563,2]
[374110356,1753210254350,-1196.19,0.00019563,2]
[374110357,1753210254359,-535.59,0.00019563,2]
[374110358,1753210254369,-1079.29,0.00019563,2]
[374110359,1753210254378,-746.62,0.00019564,2]
[374110360,1753210254388,-471.42,0.00019564,2]
[374110361,1753210254397,-632.55,0.00019564,2]
[374110362,1753210254407,-606.59,0.00019564,2]
[374110363,1753210254416,-874.42,0.00019564,2]
[374110364,1753210254425,-1090.84,0.00019564,2]
[374110365,1753210254435,-1342.67,0.00019564,2]
[374110366,1753210254444,-488.38,0.00019564,2]
[374110367,1753210254454,-460.0,0.00019564,2]
[374110368,1753210254464,-460.0,0.00019564,2]
[374110369,1753210254474,-460.0,0.00019564,2]
[374110370,1753210254483,-1118.89,0.00019564,2]
[374110371,1753210254493,-731.94,0.00019564,2]
[374110372,1753210254503,-1345.13,0.00019564,2]
[374110373,1753210254513,-1187.11,0.00019564,2]
[374110374,1753210254522,-2137.7,0.00019564,2]
[374110375,1753210254531,-1349.67,0.00019564,2]
[374110376,1753210254540,-460.0,0.00019564,2]
[374110377,1753210254552,-1694.69,0.00019564,2]
[374110378,1753210254575,-460.0,0.00019564,2]
[374110379,1753210254595,-754.36,0.00019564,2]
[374110380,1753210254615,-929.4,0.00019564,2]
[374110381,1753210254635,-1020.16,0.00019564,2]
[374110382,1753210254654,-646.92,0.00019564,2]
[374110383,1753210254673,-1358.12,0.00019564,2]
[374110384,1753210254691,-460.0,0.00019565,2]
[374110385,1753210254708,-460.0,0.00019565,2]
[374110386,1753210254726,-553.33,0.00019565,2]
[374110387,1753210254750,-553.25,0.00019565,2]
[374110388,1753210254763,-1153.71,0.00019565,2]
[374110389,1753210254780,-1418.31,0.00019565,2]
[374110390,1753210254796,-460.0,0.00019565,2]
[374110391,1753210254812,-460.0,0.00019565,2]
[374110392,1753210254825,-557.74,0.00019565,2]
[374110393,1753210254839,-460.0,0.00019565,2]
[374110394,1753210254854,-1362.87,0.00019565,2]
[374110395,1753210254868,-1064.63,0.00019565,2]
[374110396,1753210254883,-571.13,0.00019565,2]
[374110397,1753210254899,-588.73,0.00019565,2]
[374110398,1753210254914,-1351.51,0.00019565,2]
[374110399,1753210254928,-1776.12,0.00019565,2]
[374110400,1753210254944,-544.55,0.00019565,2]
[374110401,1753210254958,-2704.27,0.00019565,2]
[374110402,1753210254972,-691.11,0.00019565,2]
[374110403,1753210254987,-460.0,0.00019565,2]
[374110404,1753210255001,-3949.8,0.00019565,2]
[374110405,1753210255017,-863.13,0.00019565,2]
[374110406,1753210255031,-547.67,0.00019565,2]
[374110407,1753210255046,-460.0,0.00019565,2]
[374110408,1753210255060,-1345.16,0.00019565,2]
[374110409,1753210255075,-460.0,0.00019566,2]
[374110410,1753210255090,-5101.83,0.00019566,2]
[374110411,1753210255105,-1108.99,0.00019566,2]
[374110412,1753210255121,-460.0,0.00019566,2]
[374110413,1753210255136,-460.0,0.00019566,2]
[374110414,1753210255152,-605.93,0.00019566,2]
[374110415,1753210255167,-4275.34,0.00019566,2]
[374110416,1753210255181,-460.0,0.00019566,2]
[374110417,1753210255196,-688.73,0.00019566,2]
[374110418,1753210255210,-460.0,0.00019566,2]
[374110419,1753210255225,-830.04,0.00019566,2]
[374110420,1753210255241,-524.19,0.00019566,2]
[374110421,1753210255254,-460.0,0.00019566,2]
[374110422,1753210255263,-909.71,0.00019566,2]
[374110423,1753210255273,-3027.97,0.00019566,2]
[374110424,1753210255282,-494.78605223,0.00019566,2]
[374110425,1753210255409,-1465.54,0.00019566,2]
[374110426,1753210255419,-859.92,0.00019566,2]
[374110427,1753210255429,-824.09,0.00019566,2]
[374110428,1753210255439,-2920.58,0.00019566,2]
[374110429,1753210255448,-4347.26,0.00019566,2]
[374110430,1753210255457,-460.0,0.00019566,2]
[374110431,1753210255468,-998.04,0.00019566,2]
[374110432,1753210255478,-460.0,0.00019567,2]
[374110433,1753210255489,-1475.39627197,0.00019567,2]
[374110434,1753210255611,-499.60299998,0.00019567,2]
[374110435,1753210255623,-238.22072805,0.00019567,2]
[374110436,1753210255633,-95.25756311,0.00019612,2]
[374110437,1753210256107,-460.0,0.00017372,2]
[374110438,1753210256118,-460.0,0.00017646,2]
[374110439,1753210256127,-460.0,0.0001792,2]
[374110440,1753210256138,-460.0,0.00018194,2]
[374110441,1753210256148,-460.0,0.00018468,2]
[374110442,1753210256158,-460.0,0.00018742,2]
[374110443,1753210256167,-460.0,0.00019016,2]
[374110444,1753210256177,-460.0,0.0001929,2]
[374110445,1753210256187,-2904.74243689,0.00019612,2]
[374110446,1753210256196,-1983.43247783,0.00019612,2]
[374110447,1753210256206,-5000.0,0.00019615,2]
[374110448,1753210256215,-2072.84246444,0.00019616,2]
[374110449,1753210256224,-260.0,0.00019619,2]
[374110450,1753210256234,-5275.87341887,0.00019693,2]
[374110451,1753210256243,-1145.09225899,0.00019737,2]
[374110452,1753210256253,-3801.642,0.00019764,2]
[374110453,1753210256262,-215.0738,0.00019764,2]
[374110454,1753210256272,-151.0,0.00019764,2]
[374110455,1753210256281,-151.0,0.00019764,2]
[374110456,1753210256291,-151.0,0.00019764,2]
[374110457,1753210256301,-500.0,0.00019764,2]
[374110458,1753210256310,-151.0,0.00019764,2]
[374110459,1753210256319,-151.0,0.00019764,2]
[374110460,1753210256329,-151.0,0.00019764,2]
[374110461,1753210256338,-500.0,0.00019764,2]
[374110462,1753210256348,-151.0,0.00019764,2]
[374110463,1753210256357,-151.0,0.00019764,2]
[374110464,1753210256367,-151.0,0.00019764,2]
[374110465,1753210256376,-500.0,0.00019764,2]
[374110466,1753210256385,-151.0,0.00019764,2]
[374110467,1753210256395,-151.0,0.00019764,2]
[374110468,1753210256404,-151.0,0.00019764,2]
[374110469,1753210256415,-515.71519755,0.00019764,2]
[374110470,1753210256424,-151.0,0.00019764,2]
[374110471,1753210256434,-151.0,0.00019764,2]
[374110472,1753210256444,-151.0,0.00019764,2]
[374110473,1753210256453,-151.0,0.00019764,2]
[374110474,1753210256463,-151.0,0.00019764,2]
[374110475,1753210256472,-151.0,0.00019764,2]
[374110476,1753210256481,-151.0,0.00019764,2]
[374110477,1753210256491,-151.0,0.00019764,2]
[374110478,1753210256500,-151.0,0.00019764,2]
[374110479,1753210256509,-151.0,0.00019764,2]
[374110480,1753210256519,-151.0,0.00019764,2]
[374110481,1753210256528,-151.0,0.00019764,2]
[374110482,1753210256537,-151.0,0.00019764,2]
[374110483,1753210256547,-151.0,0.00019764,2]
[374110484,1753210256556,-151.0,0.00019764,2]
[374110485,1753210256566,-199.88962101,0.00019764,2]
[374110486,1753210256575,-151.0,0.00019764,2]
[374110487,1753210256584,-151.0,0.00019764,2]
[374110488,1753210256594,-151.0,0.00019764,2]
[374110489,1753210256604,-151.0,0.00019764,2]
[374110490,1753210256613,-151.0,0.00019764,2]
[374110491,1753210256623,-151.0,0.00019764,2]
[374110492,1753210256633,-151.0,0.00019764,2]
[374110493,1753210256643,-151.0,0.00019764,2]
[374110494,1753210256652,-151.0,0.00019764,2]
[374110495,1753210256662,-151.0,0.00019764,2]
[374110496,1753210256672,-151.0,0.00019764,2]
[374110497,1753210256681,-151.0,0.00019764,2]
[374110498,1753210256690,-151.0,0.00019764,2]
[374110499,1753210256701,-151.0,0.00019764,2]
[374110500,1753210256711,-151.0,0.00019764,2]
[374110501,1753210256720,-151.0,0.00019764,2]
[374110502,1753210256730,-151.0,0.00019764,2]
[374110503,1753210256739,-151.0,0.00019764,2]
[374110504,1753210256749,-151.0,0.00019764,2]
[374110505,1753210256759,-151.0,0.00019764,2]
[374110506,1753210256768,-151.0,0.00019764,2]
[374110507,1753210256780,-151.0,0.00019764,2]
[374110508,1753210256790,-151.0,0.00019764,2]
[374110509,1753210256800,-151.0,0.00019764,2]
[374110510,1753210256810,-151.0,0.00019764,2]
[374110511,1753210256820,-151.0,0.00019764,2]
[374110512,1753210256829,-151.0,0.00019764,2]
[374110513,1753210256839,-151.0,0.00019764,2]
[374110514,1753210256851,-25000.0,0.00019764,2]
[374110515,1753210256861,-12401.43927896,0.00019764,2]
[374110516,1753210256878,-5436.15297868,0.00019764,2]
[374110517,1753210256887,-2000.0,0.00019816,2]
[374110518,1753210256978,-2000.0,0.00019816,2]
[374110519,1753210256988,-2000.0,0.00019816,2]
[374110520,1753210256997,-1897.73328618,0.00019816,2]
[374110521,1753210257006,-2000.0,0.00019816,2]
[374110522,1753210257016,-2000.0,0.00019816,2]
[374110523,1753210257025,-2000.0,0.00019816,2]
[374110524,1753210257036,-3942.302754,0.00019819,2]
[374110525,1753210257047,-889.22,0.00019835,2]
[374110526,1753210257058,-967.41,0.00019835,2]
[374110527,1753210257068,-2555.50689505,0.00019835,2]
[374110528,1753210257083,-1377.50310495,0.00019835,2]
[374110529,1753210257093,-5587.21,0.00019837,2]
[374110530,1753210257102,-1108.38,0.00019837,2]
[374110531,1753210257111,-1005.99,0.00019837,2]
[374110532,1753210257120,-5283.6,0.00019837,2]
[374110533,1753210257129,-1079.55,0.00019837,2]
[374110534,1753210257139,-460.0,0.00019837,2]
[374110535,1753210257148,-3137.23,0.00019837,2]
[374110536,1753210257158,-558.47,0.00019837,2]
[374110537,1753210257167,-1196.19,0.00019837,2]
[374110538,1753210257176,-535.59,0.00019837,2]
[374110539,1753210257186,-1079.29,0.00019837,2]
[374110540,1753210257195,-746.62,0.00019838,2]
[374110541,1753210257205,-471.42,0.00019838,2]
[374110542,1753210257214,-632.55,0.00019838,2]
[374110543,1753210257223,-606.59,0.00019838,2]
[374110544,1753210257233,-1090.84,0.00019838,2]
[374110545,1753210257242,-1342.67,0.00019838,2]
[374110546,1753210257252,-488.38,0.00019838,2]
[374110547,1753210257261,-460.0,0.00019838,2]
[374110548,1753210257270,-460.0,0.00019838,2]
[374110549,1753210257279,-460.0,0.00019838,2]
[374110550,1753210257289,-1118.89,0.00019838,2]
[374110551,1753210257298,-731.94,0.00019838,2]
[374110552,1753210257307,-1345.13,0.00019838,2]
[374110553,1753210257317,-1187.11,0.00019838,2]
[374110554,1753210257326,-2137.7,0.00019838,2]
[374110555,1753210257335,-1349.67,0.00019838,2]
[374110556,1753210257344,-460.0,0.00019838,2]
[374110557,1753210257354,-1694.69,0.00019838,2]
[374110558,1753210257363,-460.0,0.00019838,2]
[374110559,1753210257373,-754.36,0.00019838,2]
[374110560,1753210257383,-929.4,0.00019838,2]
[374110561,1753210257393,-1020.16,0.00019838,2]
[374110562,1753210257402,-646.92,0.00019838,2]
[374110563,1753210257412,-1358.12,0.00019838,2]
[374110564,1753210257421,-460.0,0.00019839,2]
[374110565,1753210257430,-460.0,0.00019839,2]
[374110566,1753210257440,-553.33,0.00019839,2]
[374110567,1753210257450,-553.25,0.00019839,2]
[374110568,1753210257459,-1153.71,0.00019839,2]
[374110569,1753210257468,-1418.31,0.00019839,2]
[374110570,1753210257478,-460.0,0.00019839,2]
[374110571,1753210257487,-460.0,0.00019839,2]
[374110572,1753210257496,-557.74,0.00019839,2]
[374110573,1753210257506,-460.0,0.00019839,2]
[374110574,1753210257515,-1362.87,0.00019839,2]
[374110575,1753210257524,-1064.63,0.00019839,2]
[374110576,1753210257533,-571.13,0.00019839,2]
[374110577,1753210257542,-1351.51,0.00019839,2]
[374110578,1753210257555,-1776.12,0.00019839,2]
[374110579,1753210257565,-544.55,0.00019839,2]
[374110580,1753210257575,-2704.27,0.00019839,2]
[374110581,1753210257584,-691.11,0.00019839,2]
[374110582,1753210257593,-460.0,0.00019839,2]
[374110583,1753210257603,-3949.8,0.00019839,2]
[374110584,1753210257612,-863.13,0.00019839,2]
[374110585,1753210257622,-547.67,0.00019839,2]
[374110586,1753210257631,-460.0,0.00019839,2]
[374110587,1753210257641,-1345.16,0.00019839,2]
[374110588,1753210257650,-460.0,0.0001984,2]
[374110589,1753210257660,-630.7620226,0.0001984,2]
[374110590,1753210257674,-4471.0679774,0.0001984,2]
[374110591,1753210257683,-1108.99,0.0001984,2]
[374110592,1753210257692,-460.0,0.0001984,2]
[374110593,1753210257701,-460.0,0.0001984,2]
[374110594,1753210257711,-605.93,0.0001984,2]
[374110595,1753210257721,-4275.34,0.0001984,2]
[374110596,1753210257730,-460.0,0.0001984,2]
[374110597,1753210257739,-688.73,0.0001984,2]
[374110598,1753210257749,-460.0,0.0001984,2]
[374110599,1753210257758,-830.04,0.0001984,2]
[374110600,1753210257768,-524.19,0.0001984,2]
[374110601,1753210257777,-460.0,0.0001984,2]
[374110602,1753210257786,-2507.81147525,0.0001984,2]
[374110603,1753210257805,-460.0,0.00019564,2]
[374110604,1753210257814,-361.13431613,0.0001984,2]
[374110605,1753210257826,-159.02420862,0.0001984,2]
[374110606,1753210257835,-1465.54,0.0001984,2]
[374110607,1753210257845,-859.92,0.0001984,2]
[374110608,1753210257855,-275.51579138,0.0001984,2]
[374110609,1753210257869,-548.57420862,0.0001984,2]
[374110610,1753210257879,-11.64086954,0.0001984,2]
[374110611,1753210258116,-2797.9053773,0.00016823,2]
[374110612,1753210258126,-460.0,0.00016823,2]
[374110613,1753210258135,-460.0,0.00017097,2]
[374110614,1753210258145,-460.0,0.00017371,2]
[374110615,1753210258154,-460.0,0.00017645,2]
[374110616,1753210258165,-478.81578655,0.00017919,2]
[374110617,1753210258174,-460.0,0.00019838,2]
[374110618,1753210258183,-2908.93913046,0.0001984,2]
[374110619,1753210258194,-4347.26,0.0001984,2]
[374110620,1753210258204,-460.0,0.0001984,2]
[374110621,1753210258213,-998.04,0.0001984,2]
[374110622,1753210258223,-460.0,0.00019841,2]
[374110623,1753210258232,-2213.22,0.00019841,2]
[374110624,1753210258242,-4088.1679559,0.00019874,2]
[374110625,1753210258252,-4239.43017027,0.00019929,2]
[374110626,1753210258261,-500.0,0.00019965,2]
[374110627,1753210258271,-4396.28908657,0.00019984,2]
[374110628,1753210258280,-173.482,0.0002,2]
[374110629,1753210258290,-5275.87341887,0.00020003,2]
[374110630,1753210258301,-587.0,0.00020014,2]
[374110631,1753210258312,-4558.95178277,0.00020039,2]
[374110632,1753210258321,-889.22,0.00020109,2]
[374110633,1753210258331,-967.41,0.00020109,2]
[374110634,1753210258341,-511.30125667,0.00020109,2]
[374110635,1753210258353,-3421.70874333,0.00020109,2]
[374110636,1753210258363,-402.34157247,0.00020111,2]
[374110637,1753210258374,-775.9496842,0.00020111,2]
[374110638,1753210259538,-350.943936,0.00016823,2]
[374110639,1753210260912,-149.056064,0.00016823,2]
[374110640,1753210260922,-385.66352801,0.00016823,2]
[374110641,1753210260931,-3489.69,0.00016827,2]
[374110642,1753210260942,-4408.91874333,0.00020111,2]
[374110643,1753210260951,-1108.38,0.00020111,2]
[374110644,1753210260961,-1005.99,0.00020111,2]
[374110645,1753210260970,-5283.6,0.00020111,2]
[374110646,1753210260980,-1079.55,0.00020111,2]
[374110647,1753210260989,-316.4811283,0.00020111,2]
[374110648,1753210260999,-3137.23,0.00020111,2]
[374110649,1753210261009,-558.47,0.00020111,2]
[374110650,1753210261018,-1196.19,0.00020111,2]
[374110651,1753210261027,-535.59,0.00020111,2]
[374110652,1753210261036,-1079.29,0.00020111,2]
[374110653,1753210261046,-746.62,0.00020112,2]
[374110654,1753210261057,-471.42,0.00020112,2]
[374110655,1753210261075,-632.55,0.00020112,2]
[374110656,1753210261102,-606.59,0.00020112,2]
[374110657,1753210261113,-488.38,0.00020112,2]
[374110658,1753210261122,-460.0,0.00020112,2]
[374110659,1753210261132,-460.0,0.00020112,2]
[374110660,1753210261142,-460.0,0.00020112,2]
[374110661,1753210261152,-1118.89,0.00020112,2]
[374110662,1753210261161,-731.94,0.00020112,2]
[374110663,1753210261171,-1345.13,0.00020112,2]
[374110664,1753210261181,-1187.11,0.00020112,2]
[374110665,1753210261191,-2137.7,0.00020112,2]
[374110666,1753210261200,-1349.67,0.00020112,2]
[374110667,1753210261210,-460.0,0.00020112,2]
[374110668,1753210261220,-1694.69,0.00020112,2]
[374110669,1753210261230,-460.0,0.00020112,2]
[374110670,1753210261241,-754.36,0.00020112,2]
[374110671,1753210261251,-929.4,0.00020112,2]
[374110672,1753210261260,-1020.16,0.00020112,2]
[374110673,1753210261270,-646.92,0.00020112,2]
[374110674,1753210261280,-1358.12,0.00020112,2]
[374110675,1753210261289,-460.0,0.00020112,2]
[374110676,1753210261298,-460.0,0.00020113,2]
[374110677,1753210261308,-553.33,0.00020113,2]
[374110678,1753210261318,-553.25,0.00020113,2]
[374110679,1753210261328,-1153.71,0.00020113,2]
[374110680,1753210261339,-1418.31,0.00020113,2]
[374110681,1753210261348,-460.0,0.00020113,2]
[374110682,1753210261357,-460.0,0.00020113,2]
[374110683,1753210261367,-557.74,0.00020113,2]
[374110684,1753210261378,-460.0,0.00020113,2]
[374110685,1753210261387,-1362.87,0.00020113,2]
[374110686,1753210261396,-1064.63,0.00020113,2]
[374110687,1753210261405,-571.13,0.00020113,2]
[374110688,1753210261415,-1351.51,0.00020113,2]
[374110689,1753210261425,-1776.12,0.00020113,2]
[374110690,1753210261434,-544.55,0.00020113,2]
[374110691,1753210261445,-2704.27,0.00020113,2]
[374110692,1753210261455,-691.11,0.00020113,2]
[374110693,1753210261465,-460.0,0.00020113,2]
[374110694,1753210261475,-3949.8,0.00020113,2]
[374110695,1753210261486,-863.13,0.00020113,2]
[374110696,1753210261496,-547.67,0.00020113,2]
[374110697,1753210261506,-460.0,0.00020113,2]
[374110698,1753210261515,-1345.16,0.00020113,2]
[374110699,1753210261524,-460.0,0.00020114,2]
[374110700,1753210261533,-5101.83,0.00020114,2]
[374110701,1753210261543,-1108.99,0.00020114,2]
[374110702,1753210261554,-460.0,0.00020114,2]
[374110703,1753210261564,-167.50570577,0.00020114,2]
[374110704,1753210261574,-605.93,0.00020114,2]
[374110705,1753210261584,-4275.34,0.00020114,2]
[374110706,1753210261593,-460.0,0.00020114,2]
[374110707,1753210261602,-688.73,0.00020114,2]
[374110708,1753210261612,-460.0,0.00020114,2]
[374110709,1753210261622,-830.04,0.00020114,2]
[374110710,1753210261632,-524.19,0.00020114,2]
[374110711,1753210261714,-460.0,0.00020114,2]
[374110712,1753210261724,-3027.97,0.00020114,2]
[374110713,1753210261734,-1465.54,0.00020114,2]
[374110714,1753210261744,-859.92,0.00020114,2]
[374110715,1753210261753,-824.09,0.00020114,2]
[374110716,1753210261762,-2920.58,0.00020114,2]
[374110717,1753210261771,-4347.26,0.00020114,2]
[374110718,1753210261780,-460.0,0.00020114,2]
[374110719,1753210261790,-998.04,0.00020114,2]
[374110720,1753210261800,-460.0,0.00020115,2]
[374110721,1753210261810,-2213.22,0.00020115,2]
[374110722,1753210261819,-3500.0,0.0002016,2]
[374110723,1753210261829,-360.0,0.00020167,2]
[374110724,1753210261838,-667.757475,0.00020187,2]
[374110725,1753210261848,-4045.63016767,0.00020286,2]
[374110726,1753210261857,-151.0,0.00020312,2]
[374110727,1753210261866,-25000.0,0.00020312,2]
[374110728,1753210261876,-5275.87341887,0.00020314,3]
[374110729,1753210261885,-1145.09225894,0.00020332,2]
[374110730,1753210261894,-346.73616334,0.00020364,2]
[374110731,1753210261907,-2500.0,0.00020364,2]
[374110732,1753210261917,-2500.0,0.00020364,2]
[374110733,1753210261927,-1285.1502188,0.00020364,2]
[374110734,1753210261936,-2500.0,0.00020364,2]
[374110735,1753210261947,-1182.42071431,0.00020364,2]
[374110736,1753210261957,-500.0,0.00020373,2]
[374110737,1753210261967,-500.0,0.00020373,2]
[374110738,1753210261980,-500.0,0.00020373,2]
[374110739,1753210261991,-500.0,0.00020373,2]
[374110740,1753210262001,-502.5407948,0.00020373,2]
[374110741,1753210262011,-889.22,0.00020383,2]
[374110742,1753210262020,-967.41,0.00020383,2]
[374110743,1753210262030,-3933.01,0.00020383,2]
[374110744,1753210262039,-5587.21,0.00020385,2]
[374110745,1753210262048,-1108.38,0.00020385,2]
[374110746,1753210262058,-1005.99,0.00020385,2]
[374110747,1753210262067,-5283.6,0.00020385,2]
[374110748,1753210262078,-1079.55,0.00020385,2]
[374110749,1753210262087,-3137.23,0.00020385,2]
[374110750,1753210262097,-558.47,0.00020385,2]
[374110751,1753210262107,-1196.19,0.00020385,2]
[374110752,1753210262118,-535.59,0.00020385,2]
[374110753,1753210262128,-1079.29,0.00020385,2]
[374110754,1753210262138,-746.62,0.00020386,2]
[374110755,1753210262148,-471.42,0.00020386,2]
[374110756,1753210262159,-632.55,0.00020386,2]
[374110757,1753210262169,-606.59,0.00020386,2]
[374110758,1753210262180,-488.38,0.00020386,2]
[374110759,1753210262190,-460.0,0.00020386,2]
[374110760,1753210262200,-460.0,0.00020386,2]
[374110761,1753210262209,-460.0,0.00020386,2]
[374110762,1753210262219,-1118.89,0.00020386,2]
[374110763,1753210262229,-731.94,0.00020386,2]
[374110764,1753210262238,-1345.13,0.00020386,2]
[374110765,1753210262247,-1187.11,0.00020386,2]
[374110766,1753210262257,-2137.7,0.00020386,2]
[374110767,1753210262266,-1349.67,0.00020386,2]
[374110768,1753210262276,-460.0,0.00020386,2]
[374110769,1753210262286,-1694.69,0.00020386,2]
[374110770,1753210262298,-460.0,0.00020386,2]
[374110771,1753210262308,-754.36,0.00020386,2]
[374110772,1753210262317,-929.4,0.00020386,2]
[374110773,1753210262327,-1020.16,0.00020386,2]
[374110774,1753210262337,-646.92,0.00020386,2]
[374110775,1753210262346,-1358.12,0.00020386,2]
[374110776,1753210262355,-460.0,0.00020386,2]
[374110777,1753210262365,-460.0,0.00020387,2]